Cogmind - Beta 16 @@@ ROGUE MODE // 2025.11.23 @ 01:53:35 Player: Shimejimeji Result: Destroyed by R5-DVR(R) with Subdweller Laser Performance ------------- Evolutions (0) 0 Regions Visited (2) 400 Robots Destroyed (13) 65 Value Destroyed (315) 315 Prototype IDs (0) 0 Alien Tech Used (0) 0 Bonus (-23) -23 TOTAL SCORE: 757 Bonus ------- Friendly Fire -23 Cogmind --------- Core Integrity 0/250 Matter 248/300 Energy 85/250 System Corruption 0% Temperature Warm (184) Movement Treading (240) Ox1 Location -10/Subcaves Parts ------- > --- POWER (1) -------- Ion Engine > --- PROPULSION (2) --- Light Treads > --- UTILITY (2) ------ Large Storage Unit Targeting Computer > --- WEAPON (2) ------- Grenade Launcher > --- INVENTORY (15) --- Aluminum Leg Aluminum Leg Heat Sink Scrap Shield Subdweller Laser Peak State ------------ > --- POWER ------------ Light Ion Engine > --- PROPULSION ------- Light Treads Light Treads > --- UTILITY ---------- Large Storage Unit Visual Processing Unit > --- WEAPON ----------- Assault Rifle Light Assault Rifle > --- INVENTORY -------- Ion Engine Light Treads Aluminum Leg Aluminum Leg Heat Sink Targeting Computer Scrap Shield Grenade Launcher [Rating: 9] Favorites ----------- Power Light Ion Engine Engine Light Ion Engine Propulsion Light Treads Treads Light Treads Utility Large Storage Unit Storage Large Storage Unit Processor Visual Processing Unit Weapon Assault Rifle Ballistic Gun Assault Rifle Launcher Grenade Launcher Build | -11 -10 -10 ------- Run | Yrd Mat Sub Slots Evolved . | . . . Power . | . . . Propulsion . | . . . Utility . | . . . Weapon . | . . . Parts Attached 13 | 6 3 4 Power 3 | 1 1 1 Engine 3 | 1 1 1 Core . | . . . Reactor . | . . . Propulsion 3 | 2 . 1 Treads 3 | 2 . 1 Leg . | . . . Wheel . | . . . Hover . | . . . Flight . | . . . Utility 4 | 1 2 1 Device . | . . . Storage 2 | 1 1 . Processor 2 | . 1 1 Hackware . | . . . Protection . | . . . Artifact . | . . . Weapon 3 | 2 . 1 Energy Gun . | . . . Energy Cannon . | . . . Ballistic Gun 2 | 2 . . Ballistic Cannon . | . . . Launcher 1 | . . 1 Special Weapon . | . . . Impact Weapon . | . . . Slashing Weapon . | . . . Piercing Weapon . | . . . Special Melee Weapon . | . . . Unidentified Prototypes . | . . . Parts Lost 6 | . 1 5 Power 2 | . 1 1 Propulsion 2 | . . 2 Utility . | . . . Weapon 2 | . . 2 Highest Loss Streak 5 | . 1 5 To Critical Strikes . | . . . Average Backups 4 | 1 4 7 Power . | . 1 . Propulsion 2 | . 2 2 Utility . | . . 2 Weapon . | . . 1 Tool/Special . | . . . Unused Backups 5 | . . 5 Power . | . . . Propulsion 2 | . . 2 Utility 2 | . . 2 Weapon 1 | . . 1 Tool/Special . | . . . Average Slot Usage (%) 94 | . 93 98 Engine 14 | . 14 14 Treads 27 | . 28 27 Storage 14 | . 14 14 Processor 9 | . 8 14 Ballistic Gun 27 | . 28 27 Peak Build Rating 9 | 6 8 9 Average Rating 7 | 4 7 8 On Entrance 4 | . 6 8 Avg Prop Armor Cover (%) . | . . . Naked Turns . | . . . Heaviest Build 26 | 11 26 26 Greatest Support 40 | 40 40 40 Greatest Overweight (x) 1 | . . 1 Average Overweight (x) . | . . . Largest Inventory Capacity 15 | 8 15 15 Average Capacity 12 | 7 12 15 Most Carried 10 | 4 7 10 Average Carried 5 | 1 4 8 Final Capacity 15 | 8 15 15 Final Carried 7 | 3 7 6 Class Distribution -------------------- 100% | Mutant Dominant Class ---------------- Mutant | -10/Materials Mutant | -10/Subcaves Resources | -11 -10 -10 ----------- Run | Yrd Mat Sub Matter Collected 403 | 246 58 99 Remotely . | . . . Salvage Created 372 | . 276 96 Parts 29 | . 24 5 Haulers Intercepted 1 | . 1 . Recyclers Shooed . | . . . Parts Field Recycled . | . . . Retrieved Matter . | . . . Parts Self-Destructed . | . . . Prevented . | . . . Parts Restored . | . . . Kills | -11 -10 -10 ------- Run | Yrd Mat Sub Combat Hostiles Destroyed 10 | . 7 3 Guns 8 | . 7 1 AOE 2 | . . 2 Classes Destroyed 6 | . 5 1 Worker 1 | . 1 . Hauler 1 | . 1 . Watcher 1 | . 1 . Swarmer 3 | . 3 . Grunt 4 | . 4 . Subdweller 3 | . . 3 Best Kill Streak 6 | . 6 2 Combat Bots Only 4 | . 4 2 Max Kills in Single Turn 2 | . 2 2 Gunslinging . | . . . Exploded 2 | . . 2 Melee . | . . . Uniques/NPCs Destroyed . | . . . Combat | -11 -10 -10 -------- Run | Yrd Mat Sub Hostile Shots Fired 74 | . 21 53 Missed 24 | . 5 19 Hits 50 | . 16 34 Projectile 50 | . 16 34 Critical Strikes 2 | . . 2 Damage Taken 942 | . 260 682 Core 267 | . 121 146 Absorbed by Shields . | . . . Core Remaining (%) 100 | 100 . . Volleys Fired 40 | . 28 12 Largest 2 | . 2 2 Hottest 40 | . 40 40 Shots Fired 79 | . 56 23 Gun 78 | . 56 22 Cannon . | . . . Launcher 1 | . . 1 Special . | . . . Kinetic 78 | . 56 22 Thermal . | . . . Explosive 1 | . . 1 Electromagnetic . | . . . Robot Hit Streak 11 | . 5 11 Robot Miss Streak 4 | . 4 3 Penetration Max . | . . . Secondary Targets 1 | . 1 . Max Gunslinging Chain 1 | . 1 . Shots Hit Robots 48 | . 32 16 Core Hits 22 | . 15 7 Critical Kills 1 | . . 1 Critical Parts Destroyed 1 | . 1 . Critical Strikes 2 | . 1 1 Destroy 2 | . 1 1 Melee Attacks . | . . . Impact . | . . . Slashing . | . . . Piercing . | . . . Sneak Attacks . | . . . Combat Hostiles . | . . . Follow-up Attacks . | . . . Damage Inflicted 904 | . 525 379 Guns 489 | . 342 147 Cannons . | . . . Explosions 412 | . 180 232 Melee . | . . . Ramming 3 | . 3 . Kinetic 489 | . 342 147 Thermal . | . . . Explosive 412 | . 180 232 Electromagnetic . | . . . Impact . | . . . Slashing . | . . . Piercing . | . . . Highest Corruption . | . . . Average Corruption . | . . . Corruption Purged . | . . . Corruption Blocked . | . . . Overload Shots . | . . . Overflow Damage 109 | . 109 . Projectiles . | . . . Explosions 109 | . 109 . Melee . | . . . Knockbacks . | . . . Impact . | . . . Kinetic . | . . . Secondary . | . . . Self-Inflicted Damage 124 | . 100 24 Shots 2 | . 1 1 Rammed 3 | . 2 1 Targets Rammed 3 | . 2 1 Kicked . | . . . Crushed . | . . . Highest Temperature 259 | . 6 259 Average Temperature 86 | . 6 166 Received Heat Transfer 754 | . 66 688 Siege Activations . | . . . Martial Activations . | . . . Shielding Activations . | . . . Robots Disrupted . | . . . Combat Hostiles . | . . . Robots Corrupted . | . . . Combat Hostiles . | . . . Parts Fried . | . . . Impact Corruptions . | . . . Robots Melted . | . . . Combat Hostiles . | . . . Parts Melted . | . . . Heat Transferred . | . . . Parts Sabotaged . | . . . Parts Stolen . | . . . Parts Stripped . | . . . Power Chain Reactions . | . . . Alert | -11 -10 -10 ------- Run | Yrd Mat Sub Maximum Alert Level . | . . . Low Security (%) 100 | 100 100 . Level 1 . | . . . Level 2 . | . . . Level 3 . | . . . Level 4 . | . . . Level 5 . | . . . High Security . | . . . Max Security . | . . . Peak Influence 191 | . 191 . Initial . | . . . Average 42 | . 51 . Influence Increases 272 | . 272 . Destroy 0b10 Robot/C 140 | . 140 . Destroy 0b10 Robot/NC 15 | . 15 . Destroy Leader 34 | . 34 . Successful Hack 7 | . 7 . Disable Machine 15 | . 15 . Destroy Structure 31 | . 31 . Lose Combat Pursuer 30 | . 30 . Influence Decreases 272 | . 129 143 Entered New Map 70 | . . 70 Time Decay 189 | . 119 70 Lost Part 13 | . 10 3 Squads Dispatched 2 | . 2 . Investigation 1 | . 1 . Extermination . | . . . Reinforcement 1 | . 1 . Assault . | . . . Garrison . | . . . Intercept . | . . . Searches Triggered . | . . . Construction Impeded . | . . . Haulers Reinforced . | . . . Active Scanning Responses . | . . . Cargo Convoy Interrupts . | . . . Stealth | -11 -10 -10 --------- Run | Yrd Mat Sub Distress Signals . | . . . Communications Jammed . | . . . Distress Signals . | . . . Times Spotted 25 | . 13 12 Peak Tracking Total 8 | . 3 8 Tactical Retreats 1 | . 1 . Traps | -11 -10 -10 ------- Run | Yrd Mat Sub Traps Triggered 1 | . 1 . Indirectly . | . . . Trap Hack Attempts . | . . . Triggered . | . . . Disarmed . | . . . Reprogrammed . | . . . Reused . | . . . Traps Extracted . | . . . Installed . | . . . Triggered . | . . . Machines | -11 -10 -10 ---------- Run | Yrd Mat Sub Machines Disabled 1 | . 1 . Max in Single Turn 1 | . 1 . Machines Repaired . | . . . Machines Dismantled . | . . . Machines Sabotaged . | . . . Overloaded Fab Kills . | . . . Hacking | -11 -10 -10 --------- Run | Yrd Mat Sub Machines Accessed 4 | . 4 . Terminals 3 | . 3 . Fabricators . | . . . Repair Stations . | . . . Recycling Units 1 | . 1 . Scanalyzers . | . . . Garrison Access . | . . . Total Hacks 10 | . 10 . Successful 8 | . 8 . Failed 2 | . 2 . Catastrophic . | . . . Database Lockouts . | . . . Manual . | . . . Terminals 9 | . 9 . Fabricators . | . . . Repair Stations . | . . . Recycling Units 1 | . 1 . Scanalyzers . | . . . Garrison Access . | . . . Terminal Hacks 7 | . 7 . Record 4 | . 4 . Hauler Manifests 1 | . 1 . Registered Components 1 | . 1 . Zone Layout 1 | . 1 . Fabricator Hacks . | . . . Repair Station Hacks . | . . . Recycling Unit Hacks 1 | . 1 . Report Inventory 1 | . 1 . Scanalyzer . | . . . Garrison Access Hacks . | . . . Unauthorized Hacks . | . . . Terminals . | . . . Fabricators . | . . . Repair Stations . | . . . Recycling Units . | . . . Scanalyzers . | . . . Garrison Access . | . . . Data Cores Recovered . | . . . Used . | . . . Hacking Detections 2 | . 2 . Full Trace Events . | . . . Feedback Events . | . . . Feedback Blocked . | . . . Robot Schematics Acquired . | . . . Robots Built . | . . . Authchips . | . . . Time . | . . . Total Robot Build Rating . | . . . Part Schematics Acquired . | . . . Parts Built . | . . . Authchips . | . . . Time . | . . . Total Part Build Rating . | . . . Part Studies Acquired . | . . . Parts Repaired . | . . . Time . | . . . Parts Recycled . | . . . Recycled Matter . | . . . Retrieved Matter . | . . . Retrieved Components . | . . . Parts Scanalyzed . | . . . Part Schematics Acquired . | . . . Parts Damaged . | . . . Bothacking | -11 -10 -10 ------------ Run | Yrd Mat Sub Used RIF Installer . | . . . Robots Hacked . | . . . Non-combat . | . . . Combat . | . . . Robot Hacks Applied . | . . . Relay Couplers Released . | . . . Fabnet Peak Effective % . | . . . Robots Rewired . | . . . Allies Hacked . | . . . Hacks Repelled . | . . . Allies | -11 -10 -10 -------- Run | Yrd Mat Sub Total Allies . | . . . Largest Group . | . . . Highest-Rated Group . | . . . Highest-Rated Ally . | . . . Total Orders . | . . . Ally Attacks . | . . . Total Damage . | . . . Kills . | . . . Allies Corrupted . | . . . Allies Melted . | . . . Intel | -11 -10 -10 ------- Run | Yrd Mat Sub Active Infowar (turns) 396 | . 353 43 Optics 396 | . 353 43 Robot Analysis Total . | . . . Derelict Logs Recovered . | . . . Drone Launches . | . . . Drone Recoveries . | . . . Exploration | -11 -10 -10 ------------- Run | Yrd Mat Sub Turns Passed 858 | 117 575 166 Spaces Moved 428 | 79 276 73 Core 21 | 21 . . Treads 407 | 58 276 73 Legs . | . . . Wheels . | . . . Hover . | . . . Flight . | . . . Fastest Speed 50 | 50 160 160 Average Speed 154 | 130 160 162 Slowest Speed 240 | 160 160 240 Overloaded Moves . | . . . Propulsion Burnouts . | . . . Robots Hopped . | . . . Potential Cave-ins . | . . . Cave-ins Triggered . | . . . Exploration Rate (%) 25 | 6 58 11 Regions Visited 2 Branch Regions 1 Pre-discovered Areas . | . . . Known Exits Taken . | . . . Unknown Exits Taken 2 | 1 1 . Scrap Searched . | . . . Spaces Dug . | . . . Terrain Destroyed 38 | . 31 7 Melee . | . . . Projectile . | . . . AOE 38 | . 31 7 Terrain Rammed . | . . . Walls Destroyed . | . . . Machines Disabled . | . . . Actions | -11 -10 -10 --------- Run | Yrd Mat Sub Total 549 | 93 358 98 Wait 46 | . 42 4 Move 426 | 78 275 73 Hop . | . . . Pick Up 19 | 9 7 3 Fast Attach . | . . . Attach 11 | 6 2 3 Detach . | . . . Swap 2 | . 1 1 Drop 2 | . 1 1 Fire 40 | . 28 12 Melee . | . . . Ram . | . . . Kick . | . . . Crush 3 | . 2 1 Escape Stasis . | . . . Rewire . | . . . Trap . | . . . Miscellaneous . | . . . Route ------- -11/Scrapyard -10/Materials (discovered 2 exits: [*Mat] / [*Sub]) -10/Subcaves History --------- Turn | Location | Event 8 | -11/Scrapyard | Discovered new exit (range 15) 118 | -11/Scrapyard | Entered Materials 309 | -10/Materials | Build established: Mutant 576 | -10/Materials | Discovered new exit (range 17) 668 | -10/Materials | Discovered new exit (range 5) 693 | -10/Materials | Entered Subcaves 694 | -10/Subcaves | Approached by a straggling Scientist 706 | -10/Subcaves | A swath of the cavern ceiling suddenly collapsed 772 | -10/Subcaves | Core integrity fell below 50% 843 | -10/Subcaves | Ambushed by swarm of Subdwellers 845 | -10/Subcaves | Ambushed by Subdwellers from Twisted Machinery 845 | -10/Subcaves | Ambushed by Subdwellers from Twisted Machinery 849 | -10/Subcaves | Core integrity fell below 20% 859 | -10/Subcaves | Destroyed by R5-DVR(R) with Subdweller Laser Last Messages --------------- Lgt. Assault Rifle destroyed. Lgt. Treads destroyed. Critical hit (Meltdown: +260). Slammed into IQ-A1J(R). U0-ODJ(R) emerges from the Twisted Machinery. WE-YM7(R) emerges from the Twisted Machinery. T3-CSU(R) destroyed. Lgt. Ion Engine destroyed. HV Slug penetrates KQ-BGE(R). HV Slug penetrates Wall. Assault Rifle destroyed. Critical hit (Meltdown: +290). HV Slug penetrates KQ-BGE(R). HV Slug penetrates Wall. KQ-BGE(R) destroyed. Lgt. Treads destroyed. M7-MM7(R) destroyed. IQ-A1J(R) destroyed. HV Slug penetrates U0-ODJ(R). U0-ODJ(R) suffers critical hit (Destroy). Map ----- +----------------------------------------------------+ | ?????????????????????????????????????????????????? | | ?????????????????????????????????????????????????? | | ?????????????????????????????????????????????????? | | ?????????????????????????????????????????????????? | | ?????????????????????????????????????????????????? | | ?????????????????????????????????????????? ?????? | | ????????????????????????????????????????? ????? | | ????????????????????????????????????????? #??## | | ???????????????????? ??????????????????# ### | | ?????????????????? ??????????????????# | | ?????????????????? ??????????????????# | | ?????????????????? ??????????????????# | | ?????????????????? ??????????????????? | | ?????????????????# ##??????????????????? | | ?????????????????? #????????????????????# | | ??????????????????? #?????????????????????# | | ??????????????????? ##????????????????????# | | ???????????????????? #???????????????????## | | ????????????????????# ##??????????????????# | | ???????????????????## ##?????????????????## | | ???????????????????# ] ??????????????????????? | | ???????????????????# =R% ???????????????????????? | | ???????????# ????## &=#????????????????????????? | | ???????????? # R% #????###########????????? | | ????????????????? R!*###### ## ##???????? | | ?????????????????????##%h@ #???????? | | ??????????????????????#! & #???????? | | ?????????????????????# % c ## #??##???? | | ?????????????????????######## ### ##??# #??? | | ????????????????????????????## #?## ##??## ### | | ?????????????????????????????# #?# ###?## | | ?????????????????????????????## ###&# ### ## | | ??????????????????????????????######" * ## ### | | ???????????????????????????????????##%&%% ## | | ???????????????????????????????????# # % | | ???????????????????????????????????#### | | ??????????????????????????????????????## # # | | ??????????????????????????????????????# # # ## | | ???????????????????????????????????? # | | ?????????????????????????????????? # | | ????????????????????????????????? # # | | ???????????????????????????????? # | | ???????????????????????????????? ### # | | ???????????????????????????????##### ##?## | | ???????????????????????????????????# "##???? | | ??????????????????????????????????? ##?????? | | ?????????????????????????????????? ???????? | | ?????????????????????????????????? ?????????? | | ???????????????????????????????????????????????? | | ?????????????????????????????????????????????????? | +----------------------------------------------------+ Best States ------------- Heat Dissipation 25 Energy Generation 10 Energy Capacity 125 Matter Stores 300 Matter Capacity 300 Sight Range 18 Terrain Scan Density 10 Evasion (%) 50 Targeting Accuracy 5 Recoil Reduction 2 Item Schematics ----------------- None Robot Schematics ------------------ None Fabricated ------------ Nothing Repaired ---------- Nothing Studied --------- None Alien Tech Used ----------------- None Achievements -------------- Loot Pinata Spot Them First Challenges ------------ None Game ------ Seed ImprinterReflectiveTearclaws Manual? 0 Play Time 00:17:53 Cumulative 4.3 hours Start 2025.11.23 @ 01:30:55 End 2025.11.23 @ 01:53:35 Sessions 3 Manual Loads 0 Difficulty Rogue Special Mode None Game No. 4 Rogue 4 Adventurer 0 Explorer 0 Win Type - Total 0 Types 0/0/0/0/0/0/0/0/0/0 Lore% 3 Gallery% 5 Achievement% 7 Wizard Run 0 Options --------- Layout 0 ASCII 0 Keyboard 1 Movement Arrows Keybinds 0 Fullscreen 2 Font 18/SmallcapsGlow Map View 76x50 Zoom Use 0% Tactical HUD 0 Map Filters NONE Filters NONE Steam 1 RUN: 75c0442a-049a-41d8-b757-55ea7eae1738